fUSD/lending_fUSD_20260107
["ID","MTS","AMOUNT","RATE_DAILY","PERIOD"]
[400726996,1767801043643,-300.0,0.00017604,2]
[400726998,1767801043652,-300.0,0.00017609,2]
[400727000,1767801043661,-300.0,0.00017622,2]
[400727002,1767801043671,-300.0,0.00017623,2]
[400727004,1767801043681,-300.0,0.00017633,2]
[400727006,1767801043690,-300.0,0.00017637,2]
[400727008,1767801043703,-9066.56204036,0.0001764,2]
[400727010,1767801043712,-300.0,0.00017653,2]
[400727012,1767801043721,-300.0,0.00017663,2]
[400727014,1767801043732,-250.0,0.00017668,2]
[400727016,1767801043742,-515.65451742,0.00017676,2]
[400727018,1767801043751,-1500.0,0.00017676,2]
[400727020,1767801043761,-1500.0,0.00017676,2]
[400727022,1767801043771,-1500.0,0.00017676,2]
[400727024,1767801043781,-1500.0,0.00017676,2]
[400727026,1767801043791,-1500.0,0.00017676,2]
[400727028,1767801043801,-1500.0,0.00017676,2]
[400727030,1767801043811,-1500.0,0.00017676,2]
[400727032,1767801043821,-1018.35967674,0.00017676,2]
[400727034,1767801043831,-500.73448024,0.00017676,2]
[400727036,1767801043842,-1500.0,0.00017676,2]
[400727038,1767801043852,-1500.0,0.00017676,2]
[400727040,1767801043862,-334.5472959,0.00017676,2]
[400727042,1767801043871,-642.94,0.00017676,2]
[400727044,1767801043881,-287.61899177,0.00017676,2]
[400727046,1767801043891,-300.0,0.00017688,2]
[400727048,1767801043901,-1367.34,0.00017689,2]
[400727050,1767801043911,-1386.26860537,0.00017691,2]
[400727052,1767801043921,-1000.0,0.000177,2]
[400727054,1767801043930,-300.0,0.00017714,2]
[400727056,1767801043940,-600.0,0.00017716,2]
[400727059,1767801043952,-300.0,0.00017718,2]
[400727060,1767801043962,-155.2,0.00017726,2]
[400727062,1767801043972,-300.0,0.00017728,2]
[400727065,1767801043981,-300.0,0.00017728,2]
[400727066,1767801043991,-300.0,0.00017731,2]
[400727069,1767801044000,-300.0,0.00017732,2]
[400727071,1767801044010,-150.0,0.00017735,2]
[400727073,1767801044019,-300.0,0.00017737,2]
[400727075,1767801044029,-150.0,0.00017739,2]
[400727077,1767801044038,-300.0,0.0001774,2]
[400727079,1767801044047,-300.0,0.00017745,2]
[400727080,1767801044056,-300.0,0.00017746,2]
[400727083,1767801044065,-150.0,0.00017748,2]
[400727085,1767801044076,-300.0,0.00017751,2]
[400727087,1767801044085,-300.0,0.00017751,2]
[400727089,1767801044094,-161.23858714,0.00017753,2]
[400727091,1767801044104,-300.0,0.00017754,2]
[400727093,1767801044114,-300.0,0.00017755,2]
[400727095,1767801044123,-300.0,0.00017755,2]
[400727097,1767801044135,-300.0,0.00017759,2]
[400727099,1767801044147,-150.0,0.00017764,2]
[400727101,1767801044156,-300.0,0.00017765,2]
[400727103,1767801044166,-300.0,0.00017766,2]
[400727105,1767801044177,-300.0,0.00017769,2]
[400727107,1767801044187,-150.0,0.00017771,2]
[400727109,1767801044200,-300.0,0.00017772,2]
[400727111,1767801044211,-300.0,0.00017774,2]
[400727113,1767801044221,-150.0,0.00017779,2]
[400727115,1767801044230,-300.0,0.0001778,2]
[400727117,1767801044239,-300.0,0.00017781,2]
[400727119,1767801044249,-150.0,0.00017781,2]
[400727121,1767801044258,-150.0,0.00017781,2]
[400727123,1767801044268,-300.0,0.00017786,2]
[400727125,1767801044278,-300.0,0.00017786,2]
[400727127,1767801044287,-300.0,0.00017786,2]
[400727129,1767801044297,-150.0,0.00017786,2]
[400727131,1767801044306,-300.0,0.00017788,2]
[400727133,1767801044315,-300.0,0.00017789,2]
[400727135,1767801044324,-300.0,0.00017791,2]
[400727137,1767801044334,-300.0,0.00017792,2]
[400727141,1767801044343,-300.0,0.00017794,2]
[400727144,1767801044352,-189.05,0.00017795,2]
[400727146,1767801044361,-300.0,0.00017797,2]
[400727148,1767801044371,-1000.0,0.000178,2]
[400727150,1767801044380,-1000.0,0.00017804,2]
[400727152,1767801044390,-1000.0,0.00017804,2]
[400727154,1767801044399,-630.21,0.00017804,2]
[400727156,1767801044409,-300.0,0.00017806,2]
[400727158,1767801044418,-1100.0,0.00017806,2]
[400727160,1767801044430,-300.0,0.0001781,2]
[400727162,1767801044440,-300.0,0.00017813,2]
[400727164,1767801044451,-9169.40921,0.0001782,2]
[400727166,1767801044461,-25000.0,0.00017821,3]
[400727168,1767801044470,-300.0,0.00017822,2]
[400727170,1767801044479,-150.0,0.00017826,2]
[400727172,1767801044489,-150.0,0.00017826,2]
[400727174,1767801044498,-300.0,0.00017829,2]
[400727176,1767801044507,-300.0,0.00017829,2]
[400727178,1767801044517,-25000.0,0.0001783,3]
[400727180,1767801044526,-261.94980575,0.0001783,2]
[400727182,1767801044535,-300.0,0.0001783,2]
[400727184,1767801044544,-25000.0,0.00017838,3]
[400727186,1767801044554,-300.0,0.00017841,2]
[400727188,1767801044564,-25000.0,0.00017847,3]
[400727191,1767801044573,-200.0,0.00017855,2]
[400727192,1767801044582,-200.0,0.00017856,2]
[400727195,1767801044592,-200.0,0.00017856,2]
[400727197,1767801044601,-200.0,0.00017856,2]
[400727199,1767801044611,-25000.0,0.00017856,3]
[400727201,1767801044621,-300.0,0.00017857,2]
[400727203,1767801044630,-150.0,0.00017858,2]
[400727205,1767801044639,-25000.0,0.00017865,3]
[400727206,1767801044648,-300.0,0.00017866,2]
[400727208,1767801044657,-300.0,0.0001787,2]
[400727210,1767801044667,-300.0,0.00017871,2]
[400727212,1767801044677,-300.0,0.00017872,2]
[400727214,1767801044686,-25000.0,0.00017874,3]
[400727217,1767801044696,-300.0,0.00017876,2]
[400727219,1767801044706,-300.0,0.00017877,2]
[400727221,1767801044715,-300.0,0.00017877,2]
[400727223,1767801044724,-300.0,0.00017877,2]
[400727225,1767801044734,-300.0,0.00017878,2]
[400727227,1767801044744,-300.0,0.00017879,2]
[400727229,1767801044753,-300.0,0.0001788,2]
[400727231,1767801044764,-150.0,0.00017881,2]
[400727233,1767801044773,-25000.0,0.00017882,3]
[400727235,1767801044783,-300.0,0.00017883,2]
[400727237,1767801044792,-25000.0,0.00017891,3]
[400727239,1767801044802,-300.0,0.00017892,2]
[400727241,1767801044811,-300.0,0.00017893,2]
[400727243,1767801044822,-300.0,0.00017895,2]
[400727245,1767801044831,-228.7825,0.000179,2]
[400727247,1767801044841,-12557.6121,0.000179,2]
[400727249,1767801044850,-1386.26860537,0.000179,2]
[400727251,1767801044860,-19843.18312551,0.000179,3]
[400727253,1767801044870,-10000.0,0.000179,2]
[400727255,1767801044880,-25000.0,0.000179,3]
[400727257,1767801044889,-979.52106529,0.000179,2]
[400727259,1767801044899,-1000.0,0.000179,2]
[400727261,1767801044908,-2679.74987043,0.000179,2]
[400727263,1767801044917,-29064.39789505,0.000179,2]
[400727265,1767801044926,-10342.0,0.000179,2]
[400727267,1767801044936,-150.0,0.00017903,2]
[400727270,1767801044950,-300.0,0.00017904,2]
[400727272,1767801044961,-300.0,0.00017908,2]
[400727274,1767801044970,-300.0,0.0001791,2]
[400727276,1767801044979,-150.0,0.00017917,2]
[400727278,1767801044993,-9169.40922,0.0001792,2]
[400727280,1767801045003,-300.0,0.00017925,2]
[400727282,1767801045012,-300.0,0.00017927,2]
[400727284,1767801045021,-300.0,0.00017927,2]
[400727286,1767801045030,-150.0,0.00017929,2]
[400727288,1767801045039,-600.0,0.00017932,2]
[400727290,1767801045048,-300.0,0.00017934,2]
[400727292,1767801045058,-300.0,0.00017935,2]
[400727294,1767801045067,-300.0,0.00017937,2]
[400727296,1767801045077,-300.0,0.00017938,2]
[400727298,1767801045087,-300.0,0.00017943,2]
[400727300,1767801045096,-300.0,0.00017943,2]
[400727302,1767801045105,-150.0,0.00017949,2]
[400727304,1767801045115,-300.0,0.00017951,2]
[400727306,1767801045124,-300.0,0.00017953,2]
[400727308,1767801045135,-300.0,0.00017955,2]
[400727310,1767801045146,-1367.34,0.00017963,2]
[400727312,1767801045156,-300.0,0.00017964,2]
[400727314,1767801045166,-300.0,0.00017965,2]
[400727316,1767801045175,-150.0,0.00017969,2]
[400727318,1767801045186,-1000.0,0.0001797,2]
[400727320,1767801045198,-1109.90852601,0.0001797,2]
[400727322,1767801045208,-1000.0,0.0001797,2]
[400727324,1767801045219,-500.0,0.00017973,2]
[400727326,1767801045230,-322.49416926,0.00017973,2]
[400727328,1767801045239,-182.6941269,0.00017973,2]
[400727331,1767801045250,-360.78764565,0.00017973,2]
[400727333,1767801045259,-500.0,0.00017973,2]
[400727334,1767801045269,-500.0,0.00017973,2]
[400727337,1767801045279,-378.44615396,0.00017973,2]
[400727339,1767801045288,-500.0,0.00017973,2]
[400727341,1767801045298,-500.0,0.00017973,2]
[400727343,1767801045307,-628.50709886,0.00017973,2]
[400727345,1767801045316,-500.0,0.00017973,2]
[400727347,1767801045325,-500.0,0.00017973,2]
[400727349,1767801045334,-500.0,0.00017973,2]
[400727351,1767801045344,-300.0,0.0001798,2]
[400727353,1767801045353,-300.0,0.00017982,2]
[400727354,1767801045362,-300.0,0.00017985,2]
[400727356,1767801045372,-300.0,0.00017989,2]
[400727359,1767801045382,-300.0,0.0001799,2]
[400727361,1767801045391,-981.18924201,0.0001799,2]
[400727363,1767801045400,-981.18924201,0.0001799,2]
[400727365,1767801045409,-661.1,0.00017991,2]
[400727367,1767801045419,-151.0,0.00017997,2]
[400727369,1767801045428,-500.0,0.00017998,2]
[400727371,1767801045438,-500.0,0.00017998,2]
[400727373,1767801045448,-574.78,0.00017998,2]
[400727375,1767801045458,-574.78,0.00017998,2]
[400727377,1767801045468,-461.49248906,0.00017998,2]
[400727379,1767801045477,-155.0,0.00017999,2]
[400727381,1767801045486,-300.0,0.00017999,2]
[400727383,1767801045496,-500.0,0.00017999,2]
[400727385,1767801045505,-500.0,0.00017999,2]
[400727387,1767801045514,-500.0,0.00017999,2]
[400727389,1767801045524,-500.0,0.00017999,2]
[400727391,1767801045533,-389.79829828,0.00017999,2]
[400727393,1767801045544,-574.78,0.00017999,2]
[400727395,1767801045554,-574.78,0.00017999,2]
[400727397,1767801045563,-574.78,0.00017999,2]
[400727399,1767801045574,-574.78,0.00017999,2]
[400727401,1767801045583,-574.78,0.00017999,2]
[400727403,1767801045593,-574.78,0.00017999,2]
[400727405,1767801045603,-574.78,0.00017999,2]
[400727407,1767801045613,-574.78,0.00017999,2]
[400727409,1767801045622,-574.78,0.00017999,2]
[400727412,1767801045632,-574.78,0.00017999,2]
[400727414,1767801045641,-574.78,0.00017999,2]
[400727416,1767801045651,-574.78,0.00017999,2]
[400727417,1767801045660,-574.78,0.00017999,2]
[400727419,1767801045669,-574.78,0.00017999,2]
[400727421,1767801045679,-574.78,0.00017999,2]
[400727423,1767801045689,-574.98652128,0.00017999,2]
[400727425,1767801045700,-300.0,0.00017999,2]
[400727428,1767801045710,-666.0,0.00017999,2]
[400727429,1767801045719,-300.0,0.00017999,2]
[400727431,1767801045728,-309.134978,0.00017999,2]
[400727433,1767801045738,-300.0,0.00017999,2]
[400727435,1767801045747,-300.0,0.00017999,2]
[400727437,1767801045757,-666.0,0.00017999,2]
[400727439,1767801045766,-300.0,0.00017999,2]
[400727441,1767801045776,-385.97454992,0.00017999,2]
[400727443,1767801045785,-5826.21400436,0.00017999,2]
[400727445,1767801045795,-1219086.46710546,0.00018,2]
[400727449,1767801045814,-5769224.03895962,0.00018,2]
[400727454,1767801045853,-300.20980089,0.00018,2]
[400727461,1767801045905,-14333.4027118,0.00018,2]
[400727626,1767801048154,-456.9821999,0.000179,2]
[400727627,1767801048166,-763.42033786,0.000179,2]
[400727628,1767801048176,-15653.29439251,0.00018,2]
[400727629,1767801048189,-67023.79053896,0.00018,2]
[400727630,1767801048202,-60915.67965701,0.00018,2]
[400727631,1767801048214,-60578.22374503,0.00018,2]
[400727632,1767801048226,-7616.11512361,0.00018,2]
[400727633,1767801048310,-12625.75805125,0.000179,2]
[400727634,1767801048320,-4071197.90978288,0.00018,2]
[400727635,1767801048372,-322.133,0.00018,2]
[400728087,1767801053403,-281.34209607,0.00015215,2]
[400728125,1767801053776,-2150.98433893,0.00015215,2]
[400728127,1767801053786,-2786.85787153,0.00015215,2]
[400728129,1767801053796,-18927.88814183,0.00016307,2]
[400728142,1767801053929,-1052.35496036,0.00016307,2]
[400728144,1767801053942,-815.19382515,0.00016307,2]
[400728146,1767801053952,-20795.43692734,0.00016625,2]
[400728149,1767801053962,-11707.23947328,0.000179,2]
[400728150,1767801053972,-3223.29689103,0.00018,2]
[400728208,1767801054535,-761.86263737,0.00018,2]
[400728247,1767801054915,-699.53203885,0.00018,2]
[400728251,1767801054950,-634.06,0.00018,2]
[400728258,1767801055000,-1410.6590096,0.00018,2]
[400728270,1767801055114,-556.88660972,0.00018,2]
[400728272,1767801055126,-1334.00376711,0.00018,2]
[400729752,1767801070447,1560.983298,7.945e-05,2]
[400730309,1767801117099,500.0,0.0001491,2]
[400730310,1767801128353,688.7705386,0.00032876,120]
[400730311,1767801157237,1326.061729,0.00014939,2]
[400730312,1767801165570,1109.26559334,0.00015013,5]
[400730313,1767801165610,1109.26559334,0.00015013,5]
[400730314,1767801228003,-30000.0,0.00015014,2]
[400730315,1767801241669,10000.0,0.00015,2]
[400730316,1767801257744,185.72,0.00012327,2]
[400730317,1767801268314,-300.0,0.00015013,2]
[400730318,1767801268349,-300.0,0.00015013,2]
[400730319,1767801268383,-384.0,0.00015013,2]
[400730320,1767801268551,-8032.01,0.00015014,2]
[400730321,1767801268772,-10000.01,0.00015014,2]
[400730322,1767801268968,-10000.01,0.00015014,2]
[400730323,1767801274127,166.96224222,0.00032171,120]
[400730324,1767801274946,-10000.01,0.00015014,2]
[400730325,1767801275133,-10000.01,0.00015014,2]
[400730326,1767801275365,-10000.01,0.00015014,2]
[400730327,1767801275647,222.61632296,0.00032171,120]
[400730328,1767801276183,5000.0,0.00015,2]
[400730329,1767801276987,166.96224222,0.00032171,120]
[400730330,1767801288281,8000.0,0.00015,2]
[400730331,1767801290733,-33000.0,0.00015014,2]
[400730332,1767801300546,2912.508052,0.00014939,2]
[400730333,1767801315670,8537.0,0.00015,2]
[400730334,1767801333249,35605.38901059,0.00014919,2]
[400730336,1767801394572,1270.8968501,0.00014919,2]
[400730337,1767801454319,166.66,0.00014638,2]
[400730338,1767801454568,166.66,0.00014946,2]
[400730339,1767801478690,1270.7899,0.00014914,2]
[400730340,1767801489936,-300.0,0.00015012,2]
[400730341,1767801489973,-300.0,0.00015012,2]
[400730342,1767801490007,-195.0,0.00015012,2]
[400730343,1767801490043,-195.0,0.00015012,2]
[400730344,1767801490078,-250.0,0.00015013,2]
[400730345,1767801490111,-195.0,0.00015013,2]
[400730346,1767801490145,-254.0,0.00015013,2]
[400730347,1767801490180,-1200.0,0.00015013,2]
[400730348,1767801490214,-300.0,0.00015013,2]
[400730349,1767801490249,-300.0,0.00015013,2]
[400730350,1767801490758,-202.53434083,0.00015013,2]
[400730351,1767801490797,-512.90727126,0.00015013,2]
[400730352,1767801490832,-500.0,0.00015013,2]
[400730353,1767801490866,-89.17288625,0.00015013,2]
[400730354,1767801491226,-412.78100332,0.00015013,2]
[400730355,1767801491264,-187.44697681,0.00015013,2]
[400730356,1767801491306,-500.0,0.00015013,2]
[400730357,1767801491342,-617.03936358,0.00015013,2]
[400730358,1767801491377,-163.49161603,0.00015013,2]
[400730359,1767801491419,-988.96689298,0.00015013,2]
[400730360,1767801491461,-988.96689298,0.00015013,2]
[400730361,1767801491503,-988.96689298,0.00015013,2]
[400730362,1767801491719,-988.96689298,0.00015013,2]
[400730363,1767801491762,-988.96689298,0.00015013,2]
[400730364,1767801491807,-988.96689298,0.00015013,2]
[400730365,1767801491850,-988.96689298,0.00015013,2]
[400730366,1767801491890,-988.96689298,0.00015013,2]
[400730367,1767801492028,-988.96689298,0.00015013,2]
[400730368,1767801492070,-988.96689298,0.00015013,2]
[400730369,1767801492111,-988.96689298,0.00015013,2]
[400730370,1767801492151,-988.96689298,0.00015013,2]
[400730371,1767801492192,-988.96689298,0.00015013,2]
[400730372,1767801492380,-988.96689298,0.00015013,2]
[400730373,1767801492424,-988.96689298,0.00015013,2]
[400730374,1767801492467,-988.96689298,0.00015013,2]
[400730375,1767801492511,-988.96689298,0.00015013,2]
[400730376,1767801492557,-988.96689298,0.00015013,2]
[400730377,1767801492683,-988.96689298,0.00015013,2]
[400730378,1767801492731,-988.96689298,0.00015013,2]
[400730379,1767801492774,-988.96689298,0.00015013,2]
[400730380,1767801492816,-988.96689298,0.00015013,2]
[400730381,1767801492861,-988.96689298,0.00015013,2]
[400730382,1767801493081,-250.0,0.00015012,2]
[400730383,1767801493125,-988.96689298,0.00015013,2]
[400730384,1767801493168,-988.96689298,0.00015013,2]
[400730385,1767801493215,-988.96689298,0.00015013,2]
[400730386,1767801493262,-988.96689298,0.00015013,2]
[400730387,1767801493308,-599.30796318,0.00015013,2]
[400730388,1767801495113,-389.6589298,0.00015013,2]
[400730389,1767801495155,-988.96689298,0.00015013,2]
[400730390,1767801495197,-988.96689298,0.00015013,2]
[400730391,1767801495238,-988.96689298,0.00015013,2]
[400730392,1767801495287,-988.96689298,0.00015013,2]
[400730393,1767801495333,-319.99010358,0.00015013,2]
[400730394,1767801495606,-668.9767894,0.00015013,2]
[400730395,1767801495652,-988.96689298,0.00015013,2]
[400730396,1767801495695,-988.96689298,0.00015013,2]
[400730397,1767801495739,-988.96689298,0.00015013,2]
[400730398,1767801495785,-988.96689298,0.00015013,2]
[400730399,1767801495875,-988.96689298,0.00015013,2]
[400730400,1767801495918,-988.96689298,0.00015013,2]
[400730401,1767801495959,-988.96689298,0.00015013,2]
[400730402,1767801496002,-988.96689298,0.00015013,2]
[400730403,1767801496045,-988.96689298,0.00015013,2]
[400730404,1767801498768,-988.96689298,0.00015013,2]
[400730405,1767801498812,-988.96689298,0.00015013,2]
[400730406,1767801498855,-988.96689298,0.00015013,2]
[400730407,1767801498897,-988.96689298,0.00015013,2]
[400730408,1767801498941,-988.96689298,0.00015013,2]
[400730409,1767801499143,-988.96689298,0.00015013,2]
[400730410,1767801499186,-988.96689298,0.00015013,2]
[400730411,1767801499225,-315.10318787,0.00015013,2]
[400730412,1767801499263,-500.0,0.00015013,2]
[400730413,1767801499298,-500.0,0.00015013,2]
[400730414,1767801499335,-369.79893503,0.00015013,2]
[400730415,1767801499371,-500.0,0.00015013,2]
[400730416,1767801499407,-500.0,0.00015013,2]
[400730417,1767801499726,-961.38993155,0.00015013,2]
[400730418,1767801499770,-961.38993155,0.00015013,2]
[400730419,1767801499812,-961.38993155,0.00015013,2]
[400730420,1767801499856,-961.38993155,0.00015013,2]
[400730421,1767801499899,-961.38993155,0.00015013,2]
[400730422,1767801502176,-961.38993155,0.00015013,2]
[400730423,1767801502217,-961.38993155,0.00015013,2]
[400730424,1767801502260,-961.38993155,0.00015013,2]
[400730425,1767801502303,-961.38993155,0.00015013,2]
[400730426,1767801502344,-961.38993155,0.00015013,2]
[400730427,1767801502585,-961.38993155,0.00015013,2]
[400730428,1767801502627,-961.38993155,0.00015013,2]
[400730429,1767801502669,-961.38993155,0.00015013,2]
[400730430,1767801502710,-961.38993155,0.00015013,2]
[400730431,1767801502753,-961.38993155,0.00015013,2]
[400730432,1767801502923,-961.38993155,0.00015013,2]
[400730433,1767801502964,-961.38993155,0.00015013,2]
[400730434,1767801503368,-961.38993155,0.00015013,2]
[400730435,1767801503411,-961.38993155,0.00015013,2]
[400730436,1767801503455,-961.38993155,0.00015013,2]
[400730437,1767801504895,-961.38993155,0.00015013,2]
[400730438,1767801504936,-961.38993155,0.00015013,2]
[400730439,1767801504979,-961.38993155,0.00015013,2]
[400730440,1767801505021,-961.38993155,0.00015013,2]
[400730441,1767801505063,-961.38993155,0.00015013,2]
[400730442,1767801505147,-961.38993155,0.00015013,2]
[400730443,1767801505181,-500.0,0.00015013,2]
[400730444,1767801505215,-500.0,0.00015013,2]
[400730445,1767801505249,-500.0,0.00015013,2]
[400730446,1767801505287,-500.0,0.00015013,2]
[400730447,1767801505323,-500.0,0.00015013,2]
[400730448,1767801505364,-566.86252096,0.00015013,2]
[400730449,1767801508127,-559.4332473,0.00015014,2]
[400730450,1767801508161,1100.48300206,0.00014919,2]
[400730451,1767801508205,-961.38993155,0.00015014,2]
[400730452,1767801508225,-386.1106845,0.00015014,2]
[400730453,1767801508243,-961.38993155,0.00015014,2]
[400730454,1767801508267,-500.0,0.00015014,2]
[400730455,1767801508290,-500.0,0.00015014,2]
[400730456,1767801508314,-500.0,0.00015014,2]
[400730457,1767801508334,-500.0,0.00015014,2]
[400730458,1767801508374,-500.0,0.00015014,2]
[400730459,1767801508415,-566.86252096,0.00015014,2]
[400730460,1767801508433,-1943.50509498,0.00015014,2]
[400730461,1767801508515,-10000.01,0.00015014,2]
[400730462,1767801508576,23449.50258215,0.00014919,2]
[400730463,1767801629467,2500.0,0.00014914,2]
[400730464,1767801641793,-300.0,0.00015013,2]
[400730465,1767801641829,-1200.0,0.00015013,2]
[400730466,1767801641877,-300.0,0.00015013,2]
[400730467,1767801641914,-500.0,0.00015013,2]
[400730468,1767801641949,-305.69773206,0.00015013,2]
[400730469,1767801641985,-299.19084191,0.00015013,2]
[400730470,1767801642019,-275.0,0.00015013,2]
[400730471,1767801642054,-500.0,0.00015013,2]
[400730472,1767801642088,-577.50868335,0.00015013,2]
[400730473,1767801642126,-220.57223151,0.00015013,2]
[400730474,1767801642160,-300.0,0.00015014,2]
[400730475,1767801642734,-1268.16296255,0.00015014,2]
[400730476,1767801642771,-200.0,0.00015014,2]
[400730477,1767801643761,-244.07102234,0.00015014,2]
[400730478,1767801643804,-200.0,0.00015014,2]
[400730479,1767801643866,-7063.6840749,0.00015014,2]
[400730480,1767801643973,-10000.01,0.00015014,2]
[400730481,1767801644610,-10000.01,0.00015014,2]
[400730482,1767801644681,-10000.01,0.00015014,2]
[400730483,1767801644725,-10000.01,0.00015014,2]
[400730484,1767801646452,-10000.01,0.00015014,2]
[400730485,1767801646492,-10000.01,0.00015014,2]
[400730486,1767801646744,-10000.01,0.00015014,2]
[400730487,1767801646978,-10000.01,0.00015014,2]
[400730488,1767801650539,733.6553347,0.00014919,2]
[400730489,1767801682385,1239.43782025,0.00014919,2]
[400730490,1767801684073,236.5096,0.00014914,2]
[400730491,1767801693929,200.693,0.00014714,2]
[400730492,1767801696103,370.25497861,0.00014914,2]
[400730493,1767801696202,4043.923,0.00014714,2]
[400730494,1767801702894,370.2549786,0.00014917,2]
[400730495,1767801708093,370.2549786,0.00014919,2]
[400730496,1767801719074,32062.73406099,0.00014919,2]
[400730497,1767801752002,186.3914,0.00014914,2]
[400730498,1767801794826,489.10355646,0.00014919,2]
[400730499,1767801814878,-300.0,0.00015004,2]
[400730500,1767801814919,-319.82401002,0.00015005,2]
[400730501,1767801814957,-500.0,0.00015005,2]
[400730502,1767801814996,-151.0,0.00015005,2]
[400730503,1767801815039,-151.0,0.00015005,2]
[400730504,1767801815471,-151.0,0.00015005,2]
[400730505,1767801815515,-151.0,0.00015005,2]
[400730506,1767801815559,-284.8162209,0.00015005,2]
[400730507,1767801815603,-151.0,0.00015005,2]
[400730508,1767801815651,-151.0,0.00015005,2]
[400730509,1767801815695,-151.0,0.00015005,2]
[400730510,1767801815739,-200.0,0.00015005,2]
[400730511,1767801815784,-151.0,0.00015005,2]
[400730512,1767801815829,-151.0,0.00015005,2]
[400730513,1767801815872,-151.0,0.00015005,2]
[400730514,1767801815917,-151.0,0.00015005,2]
[400730515,1767801815961,-151.0,0.00015005,2]
[400730516,1767801816003,-151.0,0.00015005,2]
[400730517,1767801816044,-151.0,0.00015005,2]
[400730518,1767801816085,-151.0,0.00015005,2]
[400730519,1767801816127,-300.0,0.00015009,2]
[400730520,1767801816166,-500.0,0.00015013,2]
[400730521,1767801816211,-160.72953816,0.00015013,2]
[400730522,1767801816548,-339.27046184,0.00015013,2]
[400730523,1767801816588,-531.52006841,0.00015013,2]
[400730524,1767801817883,-339.27046184,0.00015013,2]
[400730525,1767801817907,-8258.4289395,0.00015013,2]
[400730526,1767801818834,-10000.01,0.00015013,2]
[400730527,1767801818900,-10000.01,0.00015013,2]
[400730528,1767801820548,-10000.01,0.00015013,2]
[400730529,1767801820623,-2846.78537194,0.00015013,2]
[400730530,1767801820634,-500.0,0.00015013,2]
[400730531,1767801820645,-500.0,0.00015013,2]
[400730532,1767801820656,-500.0,0.00015013,2]
[400730533,1767801820666,-500.0,0.00015013,2]
[400730534,1767801820677,-476.49623036,0.00015013,2]
[400730535,1767801820689,-627.83188275,0.00015013,2]
[400730536,1767801820700,-208.7669946,0.00015013,2]
[400730537,1767801820710,-417.98263923,0.00015013,2]
[400730538,1767801820721,-500.0,0.00015013,2]
[400730539,1767801820732,-500.0,0.00015013,2]
[400730540,1767801820743,-500.0,0.00015013,2]
[400730541,1767801820754,-500.0,0.00015013,2]
[400730542,1767801820765,-500.0,0.00015013,2]
[400730543,1767801820775,-500.0,0.00015013,2]
[400730544,1767801820786,-422.14688112,0.00015013,2]
[400730545,1767801820829,-77.85311888,0.00015013,2]
[400730546,1767801820839,-500.0,0.00015013,2]
[400730547,1767801820849,-500.0,0.00015013,2]
[400730548,1767801820859,-500.0,0.00015013,2]
[400730549,1767801820870,-500.0,0.00015013,2]
[400730550,1767801820879,-500.0,0.00015013,2]
[400730551,1767801820890,-332.09898634,0.00015013,2]
[400730552,1767801820901,-572.47314528,0.00015013,2]
[400730553,1767801820911,-500.0,0.00015013,2]
[400730554,1767801820921,-500.0,0.00015013,2]
[400730555,1767801820931,-500.0,0.00015013,2]
[400730556,1767801820941,-500.0,0.00015013,2]
[400730557,1767801820951,-500.0,0.00015013,2]
[400730558,1767801820961,-500.0,0.00015013,2]